Cogmind - Beta 16.1 @@@ ROGUE MODE // 2026.01.27 @ 17:21:45 Player: JuustuToug Result: Destroyed by Lightning with EMDS Performance ------------- Evolutions (4) 2000 Regions Visited (17) 3400 Robots Destroyed (241) 1205 Value Destroyed (9200) 9200 Prototype IDs (42) 840 Alien Tech Used (0) 0 Bonus (6651) 6651 TOTAL SCORE: 23296 Bonus ------- High Alert Combat Kills 892 Follower Combat Kills 1774 Entered Garrisons 800 Used RIF Installer 2000 Network Hubs Disabled 200 Aligned with FarCom 300 Built Enhanced Grunts 300 A7 Reached Mainframe 300 Met R17 at Cetus 500 Friendly Fire -415 Cogmind --------- Core Integrity 0/850 Matter 153/300 Energy 7/100 System Corruption 45% Temperature Hot (212) Movement Core (50) Location -6/Hub_04(d) Parts ------- > --- POWER (1) -------- (None) > --- PROPULSION (4) --- Improved Medium Treads Centrium Heavy Treads > --- UTILITY (6) ------ Salvage Targeting Computer Advanced Transmission Jammer > --- WEAPON (4) ------- (None) > --- INVENTORY (5) ---- YOLO Cannon Minigun KE Penetrator Improved Remote Datajack Peak State ------------ > --- POWER ------------ Quantum Reactor > --- PROPULSION ------- Improved Heavy Treads Centrium Heavy Treads > --- UTILITY ---------- High-capacity Storage Unit Enhanced Optical Array Salvage Targeting Computer Advanced Transmission Jammer Centrium Medium Armor Plating Relay Coupler [NC] > --- WEAPON ----------- KE Penetrator KE Penetrator KE Penetrator Advanced KE Penetrator > --- INVENTORY -------- Cooled Deuterium Engine Improved Medium Treads Centrium Heavy Treads Improved Cooling System Kinecellerator Layered Medium Armor Plating Centrium Medium Armor Plating Relay Coupler [Behemoth] YOLO Cannon Minigun Minigun Coil Gun Heavy Machine Gun Long-range Missile Launcher Improved Remote Datajack [Rating: 102] Favorites ----------- Power Heavy Deuterium Engine Engine Heavy Deuterium Engine Power Core Light Nuclear Core Reactor Quantum Reactor Propulsion Light Treads Treads Light Treads Flight Unit Improved VTOL Module Utility Salvage Targeting Computer Device Advanced Heat Sink Storage Large Storage Unit Processor Salvage Targeting Computer Hackware Relay Coupler [NC] Protection Improved Medium Armor Plating Weapon Autogun Energy Gun Improved Medium Laser Energy Cannon YOLO Cannon Ballistic Gun Autogun Launcher Grenade Launcher Special Weapon Improved Remote Datajack Impact Weapon Hammer Slashing Weapon Katana Special Melee Weapon Datajack Build | -11 -10 -10 -10 -9 -8 -8 -8 -8 -7 -7 -7 -7 -6 -6 -6 -6 -6 ------- Run | Yrd Mat Min Exi Min Mat Gar Mat Gar Fac Gar Fac Gar Fac Ext Cet Arc Hub Slots Evolved 8 | . . . . . 4 . . . 2 . . . 2 . . . . Power . | . . . . . . . . . . . . . . . . . . Propulsion 2 | . . . . . 1 . . . . . . . 1 . . . . Utility 4 | . . . . . 1 . . . 2 . . . 1 . . . . Weapon 2 | . . . . . 2 . . . . . . . . . . . . Parts Attached 159 | 7 20 2 . . 11 9 23 8 7 16 9 14 8 7 5 3 10 Power 16 | 1 3 . . . 1 . 3 . 1 3 . . 1 . 1 . 2 Engine 13 | 1 3 . . . 1 . 2 . 1 3 . . 1 . . . 1 Core 1 | . . . . . . . 1 . . . . . . . . . . Reactor 2 | . . . . . . . . . . . . . . . 1 . 1 Propulsion 43 | 2 6 . . . 2 2 9 4 1 6 3 3 1 1 1 . 2 Treads 42 | 2 6 . . . 2 2 8 4 1 6 3 3 1 1 1 . 2 Leg . | . . . . . . . . . . . . . . . . . . Wheel . | . . . . . . . . . . . . . . . . . . Hover . | . . . . . . . . . . . . . . . . . . Flight 1 | . . . . . . . 1 . . . . . . . . . . Utility 36 | 2 6 1 . . 3 1 1 . 2 3 2 5 4 2 1 . 3 Device 21 | 1 3 1 . . 2 1 . . . 3 1 5 2 1 . . 1 Storage 6 | 1 3 . . . . . 1 . . . 1 . . . . . . Processor 2 | . . . . . 1 . . . . . . . 1 . . . . Hackware 2 | . . . . . . . . . 1 . . . 1 . . . . Protection 5 | . . . . . . . . . 1 . . . . 1 1 . 2 Artifact . | . . . . . . . . . . . . . . . . . . Weapon 64 | 2 5 1 . . 5 6 10 4 3 4 4 6 2 4 2 3 3 Energy Gun 11 | . 1 . . . 2 1 2 . 2 2 1 . . . . . . Energy Cannon 2 | . . . . . 1 . . . . . . . . 1 . . . Ballistic Gun 40 | 2 3 1 . . 1 3 6 3 1 2 3 5 1 2 2 3 2 Ballistic Cannon . | . . . . . . . . . . . . . . . . . . Launcher 5 | . 1 . . . . 1 . 1 . . . . . 1 . . 1 Special Weapon 1 | . . . . . . . . . . . . . 1 . . . . Impact Weapon 2 | . . . . . 1 . . . . . . 1 . . . . . Slashing Weapon 2 | . . . . . . . 2 . . . . . . . . . . Piercing Weapon . | . . . . . . . . . . . . . . . . . . Special Melee Weapon 1 | . . . . . . 1 . . . . . . . . . . . Unidentified Prototypes 12 | . . 1 . . 3 . 4 . . 1 . . . . 2 . 1 Corrupted Parts 3 | . . . . . . . . . . . . . . . . . 3 System Corruption 9 | . . . . . . . . . . . . . . . . . 9 Parts Lost 26 | . 2 . . . . 2 1 1 . 2 . . 1 1 . . 16 Power 3 | . . . . . . . 1 . . . . . . . . . 2 Propulsion 3 | . . . . . . . . . . . . . . . . . 3 Utility 9 | . 2 . . . . . . . . 1 . . 1 . . . 5 Weapon 11 | . . . . . . 2 . 1 . 1 . . . 1 . . 6 Highest Loss Streak 16 | . 1 . . . . 2 1 1 . 2 . . 1 1 . . 16 To Critical Strikes . | . . . . . . . . . . . . . . . . . . Average Backups 14 | 1 9 14 14 14 13 13 14 14 13 12 15 17 17 18 18 17 14 Power . | . 1 1 1 1 1 1 1 1 1 1 1 1 1 1 1 1 . Propulsion 3 | . 2 5 5 5 4 4 4 3 3 2 2 3 3 3 2 3 2 Utility 3 | . 1 2 1 1 1 2 2 2 2 2 4 5 5 6 6 5 4 Weapon 5 | . 3 5 5 6 5 5 6 5 6 5 5 6 7 6 6 7 5 Tool/Special . | . . . . . . . . . . . . . . . . . . Unused Backups 54 | . 6 2 1 . 3 3 6 3 1 6 1 7 3 5 3 1 3 Power 8 | . 1 . . . 1 . 1 . . . . 1 1 3 . . . Propulsion 12 | . 1 . . . 1 . . . . 3 . 3 2 . 2 . . Utility 15 | . 1 1 1 . . 3 . 1 . . 1 2 . 2 1 . 2 Weapon 17 | . 3 1 . . 1 . 5 2 . 2 . 1 . . . 1 1 Tool/Special 2 | . . . . . . . . . 1 1 . . . . . . . Average Slot Usage (%) 96 | . 99 100 100 100 95 100 99 99 99 94 92 92 92 92 92 93 82 Engine 8 | . 14 14 14 14 9 9 8 9 7 7 7 7 6 6 1 . . Treads 23 | . 28 28 28 28 26 27 26 27 23 18 15 15 19 20 20 20 16 Device 12 | . 13 14 14 14 9 9 8 9 7 8 21 23 18 7 6 6 6 Storage 9 | . 14 14 14 14 9 9 9 9 7 7 7 7 6 6 6 6 5 Processor 6 | . . . . . 5 9 9 9 7 7 7 7 6 13 13 13 11 Hackware 2 | . . . . . . . . . 6 7 1 . 5 6 6 6 4 Protection 1 | . . . . . . . . . 6 5 . . . 4 6 6 5 Energy Gun 6 | . 1 . . . 7 14 15 8 12 15 15 5 . . . . . Ballistic Gun 21 | . 26 28 28 28 23 15 16 22 10 13 15 23 25 24 25 26 23 Slashing Weapon 1 | . . . . . . . 3 3 5 . . . . . . . . Peak Build Rating 102 | 7 11 19 13 13 26 32 36 36 45 54 58 72 78 83 97 96 102 Average Rating 42 | 5 8 11 12 13 22 26 33 34 41 47 56 65 74 74 86 94 89 On Entrance 41 | . 7 11 12 13 13 25 32 34 35 41 54 58 72 73 75 93 96 Avg Prop Armor Cover (%) 6 | . . . . . . . . . . 6 6 . . . . . 11 Naked Turns . | . . . . . . . . . . . . . . . . . . Heaviest Build 100 | 15 32 32 32 32 39 40 45 45 57 57 68 78 77 87 100 93 93 Greatest Support 160 | 40 40 40 40 40 62 62 62 60 60 95 95 95 117 135 135 135 160 Greatest Overweight (x) 1 | . . . . . . . 1 . . . . . 1 . . . . Average Overweight (x) . | . . . . . . . . . . . . . . . . . . Largest Inventory Capacity 20 | 8 15 15 15 15 15 15 15 15 15 15 20 20 20 20 20 20 20 Average Capacity 16 | 7 10 15 15 15 15 15 15 15 15 15 18 20 20 20 20 20 19 Most Carried 20 | 3 15 15 15 15 15 15 15 15 15 15 20 20 20 20 20 20 20 Average Carried 15 | 1 9 14 14 15 14 14 14 14 14 14 18 19 19 19 19 19 16 Final Capacity 20 | 8 15 15 15 15 15 15 15 15 15 15 20 20 20 20 20 20 5 Final Carried 20 | 3 15 15 15 15 15 15 15 15 15 15 20 20 20 20 20 20 5 Class Distribution -------------------- 25% | Mutant 20% | Scavenger-Skirmisher 16% | Skirmisher 13% | Tank 12% | Scavenger-Tank 11% | Commander-Tank Dominant Class ---------------- Mutant | -10/Materials Mutant | -10/Mines Mutant | -10/Exiles Mutant | -9/Mines Skirmisher | -8/Materials Skirmisher | -8/Garrison Scavenger-Skirmisher | -8/Materials Scavenger-Skirmisher | -8/Garrison Scavenger-Skirmisher | -7/Factory Scavenger-Tank | -7/Garrison Scavenger-Tank | -7/Factory Tank | -7/Garrison Tank | -6/Factory Commander-Tank | -6/Extension Commander-Tank | -6/Cetus Commander-Tank | -6/Archives Scavenger-Tank | -6/Hub_04(d) Resources | -11 -10 -10 -10 -9 -8 -8 -8 -8 -7 -7 -7 -7 -6 -6 -6 -6 -6 ----------- Run | Yrd Mat Min Exi Min Mat Gar Mat Gar Fac Gar Fac Gar Fac Ext Cet Arc Hub Matter Collected 7818 | 302 934 46 . 30 299 555 724 791 210 727 234 461 683 911 374 142 395 Remotely 280 | . . . . . . . . . . . . . . . . . 280 Salvage Created 11285 | 145 1201 . . 37 372 794 1399 828 260 1596 418 780 1246 617 135 270 1187 Parts 570 | 20 79 . . 4 15 30 90 51 13 59 27 42 42 37 3 12 46 Haulers Intercepted 12 | . 2 . . . 3 . 3 . . . . . 2 . . . 2 Recyclers Shooed 4 | 1 . . . 1 1 . . . . . . . 1 . . . . Parts Field Recycled . | . . . . . . . . . . . . . . . . . . Retrieved Matter . | . . . . . . . . . . . . . . . . . . Parts Self-Destructed . | . . . . . . . . . . . . . . . . . . Prevented . | . . . . . . . . . . . . . . . . . . Parts Restored . | . . . . . . . . . . . . . . . . . . Kills | -11 -10 -10 -10 -9 -8 -8 -8 -8 -7 -7 -7 -7 -6 -6 -6 -6 -6 ------- Run | Yrd Mat Min Exi Min Mat Gar Mat Gar Fac Gar Fac Gar Fac Ext Cet Arc Hub Combat Hostiles Destroyed 165 | . 21 1 . 2 3 18 20 18 4 15 6 18 13 10 1 3 12 Guns 133 | . 18 1 . 2 3 9 20 18 4 15 6 12 13 6 1 3 2 AOE 32 | . 3 . . . . 9 . . . . . 6 . 4 . . 10 Classes Destroyed 18 | 2 7 1 . 1 1 3 . 1 . 1 . . . . . . 1 Worker 17 | . 4 . . 1 . . 5 . . . 1 . . . . . 6 Builder 9 | . . . . 1 1 . 1 . . . 1 . . 2 . . 3 Tunneler 6 | 4 . . . . . . . . . . 1 . . . . . 1 Hauler 12 | . 2 . . . 3 . 3 . . . . . 2 . . . 2 Recycler 9 | 1 3 . . . . . 1 . . . 1 . 2 . . . 1 Mechanic 3 | . 1 . . . . 1 1 . . . . . . . . . . Operator 6 | . 4 . . . . . 1 . . . . . . . . 1 . Watcher 5 | . 1 . . . 1 . 1 . . . . . . . . . 2 Swarmer 36 | . 6 . . 2 . . 3 4 . 3 3 8 3 4 . . . Grunt 62 | . 15 . . . 2 11 7 5 1 4 . 4 4 3 . . 6 Brawler 6 | . . . . . . 2 . . 1 . . . 1 . . . 2 Duelist 5 | . . . . . . 3 1 . . . . . . . . . 1 Protector 1 | . . . . . . . . . . . . . . . . . 1 Sentry 33 | . . . . . . 2 8 3 2 5 2 4 1 3 . 3 . Demolisher 1 | . . 1 . . . . . . . . . . . . . . . Specialist 3 | . . . . . . . . . . 1 . . 2 . . . . Hunter 6 | . . . . . 1 . 1 3 . 1 . . . . . . . Programmer 9 | . . . . . . . . 3 . 1 1 2 2 . . . . Cetus Guard 1 | . . . . . . . . . . . . . . . 1 . . Enhanced Grunt 2 | . . . . . . . . . . . . . . . . . 2 Lightning 2 | . . . . . . . . . . . . . . . . . 2 Thug 4 | . . . . . . . . . . . . . . 3 . . 1 Savage 1 | . . . . . . . . . . . . . . . . . 1 Guerrilla 2 | . . . . . . . . . . . . . . . 1 . 1 Best Kill Streak 25 | 5 7 1 . 2 2 6 4 4 3 3 8 7 6 4 1 3 25 Combat Bots Only 7 | . 5 1 . 2 2 6 3 4 3 3 5 7 6 4 1 3 5 Max Kills in Single Turn 9 | 1 2 1 . 1 2 2 2 2 1 2 2 3 1 3 1 1 9 Gunslinging 1 | . 1 . . . . . . . . . . 1 . 1 . . . Exploded 3 | . 1 . . . . 2 . . . . . 3 . 2 . . 2 Melee . | . . . . . . . . . . . . . . . . . . Uniques/NPCs Destroyed . | . . . . . . . . . . . . . . . . . . Combat | -11 -10 -10 -10 -9 -8 -8 -8 -8 -7 -7 -7 -7 -6 -6 -6 -6 -6 -------- Run | Yrd Mat Min Exi Min Mat Gar Mat Gar Fac Gar Fac Gar Fac Ext Cet Arc Hub Hostile Shots Fired 1469 | . 108 . . 4 25 45 59 98 53 259 81 155 146 133 15 6 282 Missed 452 | . 26 . . 1 6 12 22 23 23 74 33 50 40 51 3 4 84 Hits 1017 | . 82 . . 3 19 33 37 75 30 185 48 105 106 82 12 2 198 Melee 15 | . . . . . . 1 1 . . . . . . . . . 13 Projectile 1002 | . 82 . . 3 19 32 36 75 30 185 48 105 106 82 12 2 185 AOE 1 | . . . . . . . . . . . . 1 . . . . . Critical Strikes 38 | . . . . . 1 1 1 2 . . . 2 4 1 4 . 22 Part Disruptions 4 | . . . . . . . . 1 . . . . 2 . . . 1 Damage Taken 14221 | . 922 . . 23 319 562 552 984 205 1133 511 1049 1673 884 266 47 5091 Core 1661 | . 157 . . . 86 108 34 116 6 75 23 199 273 77 12 . 495 Absorbed by Shields 1053 | . . . . . . . . 63 . 788 . 154 . . 48 . . Reduced by Siege Mode 265 | . . . . . . . . . . 17 50 22 66 . . . 110 Core Remaining (%) 57 | 100 . . . 37 . . . 37 . . . 56 . . . . . Volleys Fired 565 | 12 114 2 . 4 19 31 49 49 8 71 16 35 46 60 17 7 25 Largest 4 | 2 2 2 . 2 4 4 4 4 4 4 4 4 4 4 4 4 4 Hottest 188 | 40 60 46 . 46 125 163 163 139 184 184 179 188 123 158 165 136 136 Shots Fired 1686 | 24 220 4 . 8 76 80 181 183 29 282 58 110 148 131 67 28 57 Gun 1605 | 24 212 4 . 8 76 67 181 182 29 282 58 105 145 94 66 28 44 Cannon 2 | . . . . . . . . . . . . . . 1 1 . . Launcher 43 | . 8 . . . . 13 . 1 . . . 5 . 3 . . 13 Special 36 | . . . . . . . . . . . . . 3 33 . . . Kinetic 1227 | 24 191 4 . 8 60 36 121 140 22 142 32 70 145 94 66 28 44 Thermal 380 | . 21 . . . 16 31 60 42 7 140 26 35 . 1 1 . . Explosive 43 | . 8 . . . . 13 . 1 . . . 5 . 3 . . 13 Electromagnetic . | . . . . . . . . . . . . . . . . . . Robot Hit Streak 35 | 9 17 3 . 4 21 14 10 23 12 35 7 7 17 20 10 9 8 Robot Miss Streak 6 | 6 4 3 . 2 4 4 3 4 1 4 2 3 3 2 3 2 5 Penetration Max 2 | . . . . . . . 1 . 1 1 1 1 1 2 1 1 1 Secondary Targets 24 | . 2 . . 1 . 3 . 2 2 2 2 2 4 2 . . 2 Max Gunslinging Chain 1 | . 1 . . 1 . 1 . 1 1 1 1 1 1 1 . . 1 Shots Hit Robots 1098 | 12 143 3 . 4 49 55 112 115 22 200 35 71 91 89 47 17 33 Core Hits 542 | 6 59 1 . 2 15 56 48 39 11 75 18 37 34 37 18 10 76 Critical Kills 6 | . . . . . 1 . 1 . . . . 1 . 1 1 1 . Critical Parts Destroyed 14 | . . . . . 1 . . 3 . . . 1 5 1 1 1 1 Critical Strikes 36 | . . . . . 2 1 7 7 . 2 2 3 5 2 2 2 1 Burn 16 | . . . . . . 1 6 4 . 2 2 1 . . . . . Destroy 20 | . . . . . 2 . 1 3 . . . 2 5 2 2 2 1 Melee Attacks 63 | . . . . . 6 21 10 22 2 2 . . . . . . . Impact 27 | . . . . . 6 21 . . . . . . . . . . . Slashing 36 | . . . . . . . 10 22 2 2 . . . . . . . Piercing . | . . . . . . . . . . . . . . . . . . Sneak Attacks 4 | . . . . . . . 4 . . . . . . . . . . Combat Hostiles . | . . . . . . . . . . . . . . . . . . Follow-up Attacks . | . . . . . . . . . . . . . . . . . . Damage Inflicted 27158 | 146 1942 59 . 86 717 2017 2100 1812 424 3566 692 1887 2149 2498 1303 671 5089 Guns 19704 | 146 1794 59 . 56 717 662 1842 1809 424 3542 689 1379 2141 1750 1303 671 720 Cannons . | . . . . . . . . . . . . . . . . . . Explosions 7103 | . 145 . . . . 1355 . . . . . 508 . 726 . . 4369 Melee 253 | . . . . . . . 253 . . . . . . . . . . Ramming 98 | . 3 . . 30 . . 5 3 . 24 3 . 8 22 . . . Kinetic 15218 | 146 1609 59 . 56 545 322 1115 1285 355 1844 400 897 2141 1750 1303 671 720 Thermal 4867 | . 185 . . . 172 340 727 524 69 1698 289 482 . 381 . . . Explosive 5368 | . 145 . . . . 1355 . . . . . 508 . 345 . . 3015 Electromagnetic 1354 | . . . . . . . . . . . . . . . . . 1354 Impact . | . . . . . . . . . . . . . . . . . . Slashing 253 | . . . . . . . 253 . . . . . . . . . . Piercing . | . . . . . . . . . . . . . . . . . . Highest Corruption 44 | . . . . . . . 1 2 . . . 1 1 . . . 44 Average Corruption 2 | . . . . . . . 1 1 . . . 1 1 . . . 20 Corruption Purged 1 | . . . . . . . . . . . . . 1 . . . . Corruption Blocked . | . . . . . . . . . . . . . . . . . . Effects 28 | . . . . . . . 1 14 . . . 5 . . . . 8 Message Errors 4 | . . . . . . . 1 2 . . . . . . . . 1 Matter Fused 7 | . . . . . . . . 2 . . . 2 . . . . 3 Heat Flow Errors 4 | . . . . . . . . 2 . . . 1 . . . . 1 Energy Discharges 5 | . . . . . . . . 5 . . . . . . . . . Parts Rejected 1 | . . . . . . . . 1 . . . . . . . . . Parts Fused 1 | . . . . . . . . . . . . 1 . . . . . Data Loss (minor) 2 | . . . . . . . . 1 . . . . . . . . 1 Alerts 2 | . . . . . . . . . . . . 1 . . . . 1 Weapon Failures 2 | . . . . . . . . 1 . . . . . . . . 1 Overload Shots . | . . . . . . . . . . . . . . . . . . Overflow Damage 238 | . 3 . . . . . 71 . . . . 10 . 73 . . 81 Projectiles . | . . . . . . . . . . . . . . . . . . Explosions 167 | . 3 . . . . . . . . . . 10 . 73 . . 81 Melee 71 | . . . . . . . 71 . . . . . . . . . . Knockbacks . | . . . . . . . . . . . . . . . . . . Impact . | . . . . . . . . . . . . . . . . . . Kinetic . | . . . . . . . . . . . . . . . . . . Secondary . | . . . . . . . . . . . . . . . . . . Self-Inflicted Damage 211 | . 35 . . . . 25 . . . . . . . . . . 151 Shots 8 | . 1 . . . . 4 . . . . . . . . . . 3 Rammed 17 | . 2 . . 3 . . 2 1 . 4 1 . 1 3 . . . Targets Rammed 22 | . 4 . . 5 . . 3 1 . 4 1 . 1 3 . . . Kicked . | . . . . . . . . . . . . . . . . . . Crushed 5 | . 2 . . 2 . . 1 . . . . . . . . . . Highest Temperature 427 | . 153 . . . 427 69 125 248 78 283 . 142 25 127 162 178 249 Average Temperature 61 | . 68 . . . 91 26 21 25 36 90 . 73 9 39 57 78 98 Received Heat Transfer 2809 | . 321 . . . 81 279 153 180 36 292 48 284 453 243 18 9 412 Siege Activations 11 | . . . . . . . . . . 2 1 2 2 1 1 . 2 Total Turns 158 | . . . . . . . . . . 48 19 30 36 1 4 . 20 Longest Duration 32 | . . . . . . . . . . 29 19 16 32 1 4 . 15 Martial Activations . | . . . . . . . . . . . . . . . . . . Shielding Activations . | . . . . . . . . . . . . . . . . . . Robots Disrupted . | . . . . . . . . . . . . . . . . . . Combat Hostiles . | . . . . . . . . . . . . . . . . . . Robots Corrupted 4 | . . . . . . . . . . . . . . . . . 4 Combat Hostiles . | . . . . . . . . . . . . . . . . . . Parts Fried 8 | . . . . . . . . . . . . . . . . . 8 Impact Corruptions . | . . . . . . . . . . . . . . . . . . Robots Melted . | . . . . . . . . . . . . . . . . . . Combat Hostiles . | . . . . . . . . . . . . . . . . . . Parts Melted 19 | . . . . . 1 . 3 6 . 2 1 4 1 1 . . . Heat Transferred 11404 | . 425 . . . 370 814 2035 1292 148 3996 814 1110 . 400 . . . Parts Sabotaged . | . . . . . . . . . . . . . . . . . . Parts Stolen . | . . . . . . . . . . . . . . . . . . Parts Stripped . | . . . . . . . . . . . . . . . . . . Power Chain Reactions . | . . . . . . . . . . . . . . . . . . Alert | -11 -10 -10 -10 -9 -8 -8 -8 -8 -7 -7 -7 -7 -6 -6 -6 -6 -6 ------- Run | Yrd Mat Min Exi Min Mat Gar Mat Gar Fac Gar Fac Gar Fac Ext Cet Arc Hub Maximum Alert Level 4 | . 1 . . . . 2 1 3 1 2 1 2 1 2 1 1 4 Low Security (%) 43 | 100 73 100 . 100 100 31 11 . 17 18 65 19 48 54 . 8 17 Level 1 39 | . 26 . . . . 36 88 20 82 46 34 11 51 34 100 91 10 Level 2 13 | . . . . . . 31 . 48 . 34 . 69 . 11 . . 15 Level 3 2 | . . . . . . . . 31 . . . . . . . . 2 Level 4 . | . . . . . . . . . . . . . . . . . 54 Level 5 . | . . . . . . . . . . . . . . . . . . High Security . | . . . . . . . . . . . . . . . . . . Max Security . | . . . . . . . . . . . . . . . . . . Peak Influence 1382 | 15 331 109 . 129 57 566 325 734 385 607 328 652 342 568 372 297 1382 Initial 385 | . . 109 . . 29 . 275 208 385 102 318 65 342 71 308 126 79 Average 247 | 2 114 11 . 53 13 307 255 548 277 362 167 415 215 221 287 247 851 Influence Increases 8248 | 25 821 20 . 284 125 586 783 536 142 525 185 587 410 1065 386 222 1546 Destroy 0b10 Robot/C 4100 | . 420 20 . 200 60 360 400 360 80 300 120 360 260 500 160 80 420 Destroy 0b10 Robot/NC 430 | 25 75 . . 10 25 10 65 . . 30 20 5 20 35 5 5 100 Destroy Leader 662 | . 106 . . 30 28 30 138 30 30 20 30 40 64 50 . . 66 Allied During Kill 994 | . . . . 29 . . . . . . . . . 392 151 85 337 Successful Hack 127 | . 19 . . . 8 14 6 30 . . . . 13 23 . . 14 Select Force Hacks 90 | . 60 . . . . . 30 . . . . . . . . . . Disable Machine 435 | . 45 . . . . . 15 . . . 15 30 . 30 45 45 210 Anti-Garrison Action 500 | . . . . . . 50 . 50 . 150 . 100 . . . . 150 Destroy Structure 475 | . 36 . . . 4 77 9 51 2 10 . 37 8 35 25 7 174 Lose Combat Pursuer 435 | . 60 . . 15 . 45 120 15 30 15 . 15 45 . . . 75 Influence Decreases 6963 | 25 541 300 . 207 202 20 1029 122 729 65 699 28 916 659 622 310 489 Entered New Map 2301 | . . 171 . . 48 . 291 112 349 45 289 28 310 75 244 190 149 Time Decay 3905 | 25 521 129 . 187 147 . 568 . 380 . 410 . 526 494 278 100 140 Lost Part 260 | . 20 . . . . 20 10 10 . 20 . . 10 10 . . 160 Lost Ally 347 | . . . . 20 7 . 10 . . . . . 70 80 100 20 40 Purge Threat 150 | . . . . . . . 150 . . . . . . . . . . Squads Dispatched 28 | . 6 . . . 3 . 4 . 1 . 1 . 6 1 . . 6 Investigation 7 | . 2 . . . 1 . 2 . . . . . . 1 . . 1 Extermination 5 | . . . . . . . . . 1 . 1 . 3 . . . . Reinforcement 12 | . 4 . . . 2 . 1 . . . . . 3 . . . 2 Assault 2 | . . . . . . . . . . . . . . . . . 2 Garrison 2 | . . . . . . . 1 . . . . . . . . . 1 Intercept . | . . . . . . . . . . . . . . . . . . Searches Triggered . | . . . . . . . . . . . . . . . . . . Construction Impeded 1 | . . . . . . . . . . . . . . . . . 1 Haulers Reinforced 2 | . . . . . . . . . . . . . 2 . . . . Active Scanning Responses . | . . . . . . . . . . . . . . . . . . Cargo Convoy Interrupts 1 | . . . . . . . . . . . . . 1 . . . . Stealth | -11 -10 -10 -10 -9 -8 -8 -8 -8 -7 -7 -7 -7 -6 -6 -6 -6 -6 --------- Run | Yrd Mat Min Exi Min Mat Gar Mat Gar Fac Gar Fac Gar Fac Ext Cet Arc Hub Distress Signals 17 | . 3 . . . 1 . 9 . . . . . . 1 . . 3 Communications Jammed 205 | . . . . . . . . . . . 1 . 64 93 . . 47 Distress Signals 205 | . . . . . . . . . . . 1 . 64 93 . . 47 Times Spotted 322 | . 49 1 . 8 10 20 32 19 8 18 10 24 33 35 10 7 38 Peak Tracking Total 13 | . 5 1 . 4 4 6 4 4 5 4 3 7 10 4 5 2 13 Tactical Retreats 23 | . 4 . . 1 . 2 6 1 1 1 . 1 3 . . . 3 Traps | -11 -10 -10 -10 -9 -8 -8 -8 -8 -7 -7 -7 -7 -6 -6 -6 -6 -6 ------- Run | Yrd Mat Min Exi Min Mat Gar Mat Gar Fac Gar Fac Gar Fac Ext Cet Arc Hub Traps Triggered 7 | . 1 . . . . . 3 2 . 1 . . . . . . . Indirectly . | . . . . . . . . . . . . . . . . . . Trap Hack Attempts 21 | . . . . . . 21 . . . . . . . . . . . Triggered 1 | . . . . . . 1 . . . . . . . . . . . Disarmed . | . . . . . . . . . . . . . . . . . . Reprogrammed . | . . . . . . . . . . . . . . . . . . Reused . | . . . . . . . . . . . . . . . . . . Traps Extracted . | . . . . . . . . . . . . . . . . . . Installed . | . . . . . . . . . . . . . . . . . . Triggered . | . . . . . . . . . . . . . . . . . . Machines | -11 -10 -10 -10 -9 -8 -8 -8 -8 -7 -7 -7 -7 -6 -6 -6 -6 -6 ---------- Run | Yrd Mat Min Exi Min Mat Gar Mat Gar Fac Gar Fac Gar Fac Ext Cet Arc Hub Machines Disabled 38 | . 3 . . . . 2 1 1 . 3 1 2 . 4 3 3 15 Max in Single Turn 10 | . 1 . . . . 1 1 1 . 1 1 1 . 2 3 1 10 Garrison Access 2 | . . . . . . . . . . . . . 1 . . . 1 Garrison Relay 5 | . . . . . . 1 . 1 . 3 . . . . . . . Network Hub 1 | . . . . . . . . . . . . . . . . . 1 Machines Repaired . | . . . . . . . . . . . . . . . . . . Machines Dismantled . | . . . . . . . . . . . . . . . . . . Machines Sabotaged . | . . . . . . . . . . . . . . . . . . Overloaded Fab Kills . | . . . . . . . . . . . . . . . . . . Hacking | -11 -10 -10 -10 -9 -8 -8 -8 -8 -7 -7 -7 -7 -6 -6 -6 -6 -6 --------- Run | Yrd Mat Min Exi Min Mat Gar Mat Gar Fac Gar Fac Gar Fac Ext Cet Arc Hub Machines Accessed 49 | . 7 . 2 . 2 2 9 2 2 2 3 1 5 10 . . 2 Terminals 35 | . 5 . . . 1 2 5 2 1 2 1 1 3 10 . . 2 Fabricators 1 | . . . . . . . . . . . . . 1 . . . . Repair Stations . | . . . . . . . . . . . . . . . . . . Recycling Units 4 | . 2 . . . . . 2 . . . . . . . . . . Scanalyzers 2 | . . . . . . . 1 . . . 1 . . . . . . Garrison Access 5 | . . . . . 1 . 1 . 1 . 1 . 1 . . . . Total Hacks 103 | . 16 . 2 . 7 3 20 3 6 3 3 2 11 24 . . 3 Successful 42 | . 10 . 2 . 3 1 5 2 2 . 1 . 6 9 . . 1 Failed 61 | . 6 . . . 4 2 15 1 4 3 2 2 5 15 . . 2 Catastrophic 11 | . 1 . . . 1 . 2 1 . . 2 . 2 1 . . 1 Database Lockouts . | . . . . . . . . . . . . . . . . . . Manual 54 | . 15 . 1 . 2 . 12 1 5 . 1 . 3 11 1 . 2 Terminals 80 | . 14 . . . 3 3 14 3 2 3 1 2 8 24 . . 3 Fabricators 2 | . . . . . . . . . . . . . 2 . . . . Repair Stations . | . . . . . . . . . . . . . . . . . . Recycling Units 5 | . 2 . . . . . 3 . . . . . . . . . . Scanalyzers 3 | . . . . . . . 2 . . . 1 . . . . . . Garrison Access 11 | . . . . . 4 . 1 . 4 . 1 . 1 . . . . Terminal Hacks 15 | . . . 2 . 1 1 2 1 . . . . 3 5 . . . Record 2 | . . . 1 . 1 . . . . . . . . . . . . Prototype ID Bank 3 | . . . . . . . 1 . . . . . 1 1 . . . Open Door 2 | . . . . . . . . . . . . . . 2 . . . Branch Access Points 1 | . . . . . . . . . . . . . 1 . . . . Alert Level 2 | . . . . . . . . . . . . . 1 1 . . . Unreport Threat 1 | . . . . . . . 1 . . . . . . . . . . Locate Traps 1 | . . . . . . . . . . . . . . 1 . . . Garrison Registry 1 | . . . . . . 1 . . . . . . . . . . . Security Stations 1 | . . . . . . . . 1 . . . . . . . . . Proto ID Catalog 1 | . . . 1 . . . . . . . . . . . . . . Fabricator Hacks 1 | . . . . . . . . . . . . . 1 . . . . Build 1 | . . . . . . . . . . . . . 1 . . . . Repair Station Hacks . | . . . . . . . . . . . . . . . . . . Recycling Unit Hacks . | . . . . . . . . . . . . . . . . . . Scanalyzer . | . . . . . . . . . . . . . . . . . . Garrison Access Hacks 5 | . . . . . 1 . 1 . 1 . 1 . 1 . . . . Unlock Access 4 | . . . . . 1 . 1 . 1 . 1 . . . . . . Seal Access 1 | . . . . . . . . . . . . . 1 . . . . Unauthorized Hacks 21 | . 10 . . . 1 . 2 1 1 . . . 1 4 . . 1 Terminals 16 | . 8 . . . 1 . 1 1 . . . . . 4 . . 1 Assimilate 1 | . . . . . . . 1 . . . . . . . . . . Botnet 8 | . 2 . . . 1 . . 1 . . . . . 3 . . 1 Operators 2 | . 1 . . . . . . . . . . . . 1 . . . Skim 5 | . 5 . . . . . . . . . . . . . . . . Fabricators 1 | . . . . . . . . . . . . . 1 . . . . Liberate 1 | . . . . . . . . . . . . . 1 . . . . Repair Stations . | . . . . . . . . . . . . . . . . . . Recycling Units 3 | . 2 . . . . . 1 . . . . . . . . . . Tunnel 3 | . 2 . . . . . 1 . . . . . . . . . . Scanalyzers . | . . . . . . . . . . . . . . . . . . Garrison Access 1 | . . . . . . . . . 1 . . . . . . . . Broadcast 1 | . . . . . . . . . 1 . . . . . . . . Data Cores Recovered 1 | . . . . . . . . . . . . . . 1 . . . Used . | . . . . . . . . . . . . . . . . . . Hacking Detections 41 | . 5 . . . 2 1 9 2 2 2 3 1 4 8 . . 2 Full Trace Events 3 | . . . . . 1 . 1 . . . . . . 1 . . . Feedback Events 1 | . . . . . . . 1 . . . . . . . . . . Corruption 1 | . . . . . . . 1 . . . . . . . . . . Feedback Blocked . | . . . . . . . . . . . . . . . . . . Robot Schematics Acquired . | . . . . . . . . . . . . . . . . . . Robots Built 1 | . . . . . . . . . . . . . 1 . . . . Authchips . | . . . . . . . . . . . . . . . . . . Time 116 | . . . . . . . . . . . . . 116 . . . . Total Robot Build Rating 3 | . . . . . . . . . . . . . 3 . . . . Part Schematics Acquired . | . . . . . . . . . . . . . . . . . . Parts Built . | . . . . . . . . . . . . . . . . . . Authchips . | . . . . . . . . . . . . . . . . . . Time . | . . . . . . . . . . . . . . . . . . Total Part Build Rating . | . . . . . . . . . . . . . . . . . . Part Studies Acquired . | . . . . . . . . . . . . . . . . . . Parts Repaired . | . . . . . . . . . . . . . . . . . . Time . | . . . . . . . . . . . . . . . . . . Parts Recycled . | . . . . . . . . . . . . . . . . . . Recycled Matter . | . . . . . . . . . . . . . . . . . . Retrieved Matter . | . . . . . . . . . . . . . . . . . . Retrieved Components . | . . . . . . . . . . . . . . . . . . Parts Scanalyzed . | . . . . . . . . . . . . . . . . . . Part Schematics Acquired . | . . . . . . . . . . . . . . . . . . Parts Damaged . | . . . . . . . . . . . . . . . . . . Bothacking | -11 -10 -10 -10 -9 -8 -8 -8 -8 -7 -7 -7 -7 -6 -6 -6 -6 -6 ------------ Run | Yrd Mat Min Exi Min Mat Gar Mat Gar Fac Gar Fac Gar Fac Ext Cet Arc Hub Used RIF Installer 4 | . . . . . . 1 . 1 . 1 . 1 . . . . . Robot Detection 1 | . . . . . . . . . . . . 1 . . . . . Watcher Feeds 1 | . . . . . . . . . . 1 . . . . . . . Structural Interface 1 | . . . . . . . . 1 . . . . . . . . . Robots Hacked 4 | . . . . . . . . . . . . . 2 2 . . . Non-combat 3 | . . . . . . . . . . . . . 2 1 . . . Combat 1 | . . . . . . . . . . . . . . 1 . . . Robot Hacks Applied 5 | . . . . . . . . . . . . . 3 2 . . . parse_system 2 | . . . . . . . . . . . . . . 2 . . . drop_inventory 1 | . . . . . . . . . . . . . 1 . . . . recall_reinforcements 1 | . . . . . . . . . . . . . 1 . . . . locate_stockpiles 1 | . . . . . . . . . . . . . 1 . . . . Relay Couplers Released 22 | . . . . . . 4 . 3 . 15 . . . . . . . Machine Destruction 18 | . . . . . . 4 . 3 . 11 . . . . . . . Programmers 4 | . . . . . . . . . . 4 . . . . . . . Attached 1 | . . . . . . . . . . . . . 1 . . . . Fabnet Peak Effective % . | . . . . . . . . . . . . . . . . . . Robots Rewired 17 | . . . . . . . . . . . . . . 17 . . . Allies Hacked . | . . . . . . . . . . . . . . . . . . Hacks Repelled . | . . . . . . . . . . . . . . . . . . Allies | -11 -10 -10 -10 -9 -8 -8 -8 -8 -7 -7 -7 -7 -6 -6 -6 -6 -6 -------- Run | Yrd Mat Min Exi Min Mat Gar Mat Gar Fac Gar Fac Gar Fac Ext Cet Arc Hub Total Allies 34 | . . . . 3 . . 1 . . . . . 4 21 5 . . Largest Group 15 | . . . . 3 2 . 1 . . . . . 3 15 14 13 10 Highest-Rated Group 861 | . . . . 40 32 . 10 . . . . . 60 575 861 861 632 Highest-Rated Ally 159 | . . . . 16 16 . 10 . . . . . 26 159 159 159 96 Total Orders 9 | . . . . . . . . . . . . . . . 9 . . STAY 7 | . . . . . . . . . . . . . . . 7 . . FOLLOW 2 | . . . . . . . . . . . . . . . 2 . . Ally Attacks 247 | . . . . 24 3 . . . . . . . 8 98 44 21 49 Total Damage 6829 | . . . . 278 30 . . . . . . . 239 1964 1313 666 2339 Kills 55 | . . . . 8 . . . . . . . . . 20 8 2 17 Allies Corrupted 4 | . . . . . . . . . . . . . . . . . 4 Allies Melted . | . . . . . . . . . . . . . . . . . . Intel | -11 -10 -10 -10 -9 -8 -8 -8 -8 -7 -7 -7 -7 -6 -6 -6 -6 -6 ------- Run | Yrd Mat Min Exi Min Mat Gar Mat Gar Fac Gar Fac Gar Fac Ext Cet Arc Hub Active Infowar (turns) 6546 | 42 639 1 . . 6 . . . . . 809 1201 1417 1398 605 214 214 Optics 2529 | . . . . . . . . . . . . . 98 1398 605 214 214 Sensors 1 | . . 1 . . . . . . . . . . . . . . . Terrain 6 | . . . . . 6 . . . . . . . . . . . . Seismic 681 | 42 639 . . . . . . . . . . . . . . . . Jamming 4533 | . . . . . . . . . . . 809 1201 1417 884 45 . 177 Robot Analysis Total . | . . . . . . . . . . . . . . . . . . Derelict Logs Recovered 5 | . . 3 . 2 . . . . . . . . . . . . . Drone Launches . | . . . . . . . . . . . . . . . . . . Drone Recoveries . | . . . . . . . . . . . . . . . . . . Exploration | -11 -10 -10 -10 -9 -8 -8 -8 -8 -7 -7 -7 -7 -6 -6 -6 -6 -6 ------------- Run | Yrd Mat Min Exi Min Mat Gar Mat Gar Fac Gar Fac Gar Fac Ext Cet Arc Hub Turns Passed 16583 | 142 1940 1192 490 469 552 874 1711 1128 894 1033 985 1201 1463 1398 605 214 292 Spaces Moved 7535 | 60 899 594 306 279 269 424 764 491 241 381 478 575 697 652 218 93 114 Core 5 | 3 . . . . . . . . . . . . . . . . 2 Treads 7530 | 57 899 594 306 279 269 424 764 491 241 381 478 575 697 652 218 93 112 Legs . | . . . . . . . . . . . . . . . . . . Wheels . | . . . . . . . . . . . . . . . . . . Hover . | . . . . . . . . . . . . . . . . . . Flight . | . . . . . . . . . . . . . . . . . . Fastest Speed 50 | 50 160 160 160 160 155 155 155 163 163 160 160 165 166 160 160 160 50 Average Speed 161 | 154 160 160 160 160 156 155 160 163 163 160 161 168 169 161 160 160 158 Slowest Speed 250 | 160 160 160 160 160 160 155 245 163 163 163 165 170 250 166 160 160 160 Overloaded Moves . | . . . . . . . . . . . . . . . . . . Propulsion Burnouts . | . . . . . . . . . . . . . . . . . . Robots Hopped . | . . . . . . . . . . . . . . . . . . Potential Cave-ins . | . . . . . . . . . . . . . . . . . . Cave-ins Triggered . | . . . . . . . . . . . . . . . . . . Exploration Rate (%) 54 | 5 97 98 69 36 23 63 58 61 6 50 19 86 19 90 83 88 27 Regions Visited 17 Branch Regions 7 Pre-discovered Areas 5 | . 2 1 1 . . . 1 . . . . . . . . . . Known Exits Taken 5 | . . . . . 1 . 1 . 1 . 1 . 1 . . . . Unknown Exits Taken 8 | 1 1 1 1 1 . . . . . . . . . 1 1 1 . Scrap Searched 3 | . . 3 . . . . . . . . . . . . . . . Spaces Dug 101 | . 12 . . . 3 2 6 11 2 . . 10 2 18 1 . 34 Terrain Destroyed 476 | . 44 . . . 3 43 6 11 2 7 . 39 13 35 2 7 264 Melee 15 | . . . . . 3 2 6 2 2 . . . . . . . . Projectile 39 | . . . . . . . . . . 7 . 7 13 2 2 7 1 AOE 422 | . 44 . . . . 41 . 9 . . . 32 . 33 . . 263 Terrain Rammed . | . . . . . . . . . . . . . . . . . . Walls Destroyed . | . . . . . . . . . . . . . . . . . . Machines Disabled . | . . . . . . . . . . . . . . . . . . Actions | -11 -10 -10 -10 -9 -8 -8 -8 -8 -7 -7 -7 -7 -6 -6 -6 -6 -6 --------- Run | Yrd Mat Min Exi Min Mat Gar Mat Gar Fac Gar Fac Gar Fac Ext Cet Arc Hub Total 10781 | 82 1199 835 308 292 358 557 1135 685 722 627 663 748 890 922 435 143 180 Wait 1949 | 1 101 226 . 5 28 20 237 81 456 119 136 83 115 118 174 36 13 Move 7521 | 59 898 593 305 278 269 423 764 489 241 380 478 574 696 651 217 92 114 Hop . | . . . . . . . . . . . . . . . . . . Pick Up 122 | 3 28 4 1 . 7 9 6 7 2 8 10 15 6 12 3 1 . Fast Attach 59 | 7 3 2 . . 7 . 14 2 1 6 1 3 2 2 5 . 4 Attach 35 | . 1 . . . 3 2 . 2 1 2 . 2 3 6 1 . 12 Detach 8 | . . . . . . . . . . 1 . 1 2 1 1 . 2 Swap 175 | . 21 1 . . 5 18 25 20 7 12 8 14 12 18 5 3 6 Drop 202 | . 29 7 2 . 14 12 27 12 4 22 13 21 7 12 12 4 4 Fire 565 | 12 114 2 . 4 19 31 49 49 8 71 16 35 46 60 17 7 25 Melee 63 | . . . . . 6 21 10 22 2 2 . . . . . . . Ram . | . . . . . . . . . . . . . . . . . . Kick . | . . . . . . . . . . . . . . . . . . Crush 22 | . 4 . . 5 . . 3 1 . 4 1 . 1 3 . . . Escape Stasis . | . . . . . . . . . . . . . . . . . . Rewire 39 | . . . . . . . . . . . . . . 39 . . . Trap 21 | . . . . . . 21 . . . . . . . . . . . Miscellaneous . | . . . . . . . . . . . . . . . . . . Route ------- -11/Scrapyard -10/Materials (discovered 5 exits: [*Mat x2] / [*Min x2] / [*Sub]) -10/Mines (discovered 3 exits: [*Mat x2] / *Exi) -10/Exiles -9/Mines -8/Materials (discovered 3 exits: *Fac / [*Sto] / Gar) -8/Garrison (discovered 3 exits: *Mat x3) -8/Materials (discovered 4 exits: *Fac x2 / [*Sto] / Gar) -8/Garrison (discovered 2 exits: *Fac x2) -7/Factory (discovered 2 exits: Low / Gar) -7/Garrison -7/Factory -7/Garrison (discovered 3 exits: *Fac x3) -6/Factory (discovered 4 exits: Low x2 / *Ext x2) -6/Extension (discovered 2 exits: [*Fac] / *Cet) -6/Cetus (discovered 2 exits: [*Fac] / [*Arc]) -6/Archives (discovered 3 exits: [*Fac] / *Hub x2) -6/Hub_04(d) History --------- Turn | Location | Event 12 | -11/Scrapyard | Discovered new exit (range 15) 143 | -11/Scrapyard | Entered Materials 315 | -10/Materials | Build established: Mutant 676 | -10/Materials | Discovered new exit (range 13) 686 | -10/Materials | Discovered new exit (range 13) 904 | -10/Materials | Discovered new exit (range 13) 1150 | -10/Materials | Discovered new exit (range 13) 1465 | -10/Materials | Core integrity fell below 50% 1504 | -10/Materials | Discovered new exit (range 16) 2083 | -10/Materials | Entered Mines 2084 | -10/Mines | Met a Derelict testing a Signal Generator 2087 | -10/Mines | Found Signal Generator 2105 | -10/Mines | Assembled infested the area 2355 | -10/Mines | Found a damaged Exp. Sensor Array with a note attached 2359 | -10/Mines | Found Prototype Device 2359 | -10/Mines | Identified Exp. Sensor Array 2408 | -10/Mines | Discovered new exit (range 10) 2727 | -10/Mines | Learned location of Zion (-7) 2738 | -10/Mines | Discovered new exit (range 15) 2776 | -10/Mines | Learned Materials emergency access door positions 2921 | -10/Mines | Deemed a non-threat by the Exiles lab entrance 2923 | -10/Mines | Discovered new exit (range 5) 3205 | -10/Mines | Learned Materials garrison access intel 3275 | -10/Mines | Entered Exiles 3315 | -10/Exiles | Met 8R-AWN 3339 | -10/Exiles | Met EX-HEX 3415 | -10/Exiles | Met EX-DEC 3543 | -10/Exiles | Met EX-BIN 3565 | -10/Exiles | Aligned with FarCom system 3567 | -10/Exiles | Given EX-Vault access code 3605 | -10/Exiles | Opened EX-Vault 3617 | -10/Exiles | Found YOLO Cannon 3652 | -10/Exiles | Warned to stay clear of 0b10 Research branches 3749 | -10/Exiles | Discovered new exit (range 12) 3765 | -10/Exiles | Left Exiles lab with YOLO Cannon 3765 | -10/Exiles | Entered Mines 3769 | -9/Mines | Assisted by bots powering up and referring to "LRC-V3" 3818 | -9/Mines | Learned Materials terminal intel 3818 | -9/Mines | Discovered new exit (range 10) 4234 | -9/Mines | Entered Materials 4234 | -8/Materials | Accompanied by 2 allies 4234 | -8/Materials | Evolved 4 slots: Propulsion x1, Utility x1, Weapon x2 4236 | -8/Materials | Loaded intel: 12 terminal locations 4237 | -8/Materials | Loaded intel: 1 garrison access location 4243 | -8/Materials | Discovered new exit (range 14) 4704 | -8/Materials | Discovered new exit (range 6) 4786 | -8/Materials | Identified exit to Garrison 4786 | -8/Materials | Entered Garrison 4854 | -8/Garrison | Build established: Skirmisher 4881 | -8/Garrison | Discovered new exit (range 43) 4881 | -8/Garrison | Discovered new exit (range 61) 4881 | -8/Garrison | Discovered new exit (range 85) 5034 | -8/Garrison | Triggered checkpoint 5056 | -8/Garrison | Triggered checkpoint 5095 | -8/Garrison | Triggered checkpoint 5229 | -8/Garrison | Installed Relay Interface Framework 5382 | -8/Garrison | Garrison Relay disabled 5660 | -8/Garrison | Entered Materials 5996 | -8/Materials | Build established: Scavenger-Skirmisher 6097 | -8/Materials | Discovered new exit (range 10) 6356 | -8/Materials | Build established: Skirmisher 6694 | -8/Materials | Build established: Scavenger-Skirmisher 6948 | -8/Materials | Discovered new exit (range 12) 7298 | -8/Materials | Discovered new exit (range 7) 7336 | -8/Materials | Garrison activated, responded to threat 7371 | -8/Materials | Identified exit to Garrison 7371 | -8/Materials | Entered Garrison 7457 | -8/Garrison | Triggered checkpoint 7487 | -8/Garrison | Learned Factory security intel 7532 | -8/Garrison | Garrison Relay disabled 7851 | -8/Garrison | Triggered checkpoint 7920 | -8/Garrison | Triggered checkpoint 7928 | -8/Garrison | Core integrity fell below 50% 8029 | -8/Garrison | Discovered new exit (range 11) 8211 | -8/Garrison | Triggered checkpoint 8343 | -8/Garrison | Discovered new exit (range 9) 8396 | -8/Garrison | Expanded RIF knowledge: Structural Interface 8499 | -8/Garrison | Entered Factory 8499 | -7/Factory | Evolved 2 slots: Utility x2 8500 | -7/Factory | Identified exit to Lower Caves 8971 | -7/Factory | Identified exit to Garrison 9393 | -7/Factory | Entered Garrison 9473 | -7/Garrison | Expanded RIF knowledge: Watcher Feeds 9487 | -7/Garrison | Triggered checkpoint 9504 | -7/Garrison | Garrison Relay disabled 9589 | -7/Garrison | Garrison Relay disabled 10001 | -7/Garrison | Triggered checkpoint 10008 | -7/Garrison | Triggered checkpoint 10152 | -7/Garrison | Build established: Scavenger-Tank 10288 | -7/Garrison | Discovered new exit (range 3) 10306 | -7/Garrison | Garrison Relay disabled 10426 | -7/Garrison | Entered Factory 11304 | -7/Factory | Identified exit to Garrison 11411 | -7/Factory | Entered Garrison 11447 | -7/Garrison | Expanded RIF knowledge: Robot Detection 11643 | -7/Garrison | Triggered checkpoint 11693 | -7/Garrison | Destroyed 7 combat bots 11701 | -7/Garrison | Triggered checkpoint 11777 | -7/Garrison | Discovered new exit (range 10) 11975 | -7/Garrison | Triggered checkpoint 12074 | -7/Garrison | Build established: Tank 12218 | -7/Garrison | Discovered new exit (range 10) 12311 | -7/Garrison | Triggered checkpoint 12358 | -7/Garrison | Heavy support dispatched to Factory 12591 | -7/Garrison | Triggered checkpoint 12597 | -7/Garrison | Discovered new exit (range 10) 12612 | -7/Garrison | Entered Factory 12612 | -6/Factory | Evolved 2 slots: Propulsion x1, Utility x1 12965 | -6/Factory | Fabricated O-24 Administrator (x1) 13283 | -6/Factory | Identified exit to Lower Caves 13283 | -6/Factory | Identified exit to Extension 13751 | -6/Factory | Cargo convoy interrupted 14075 | -6/Factory | Entered Extension 14188 | -6/Extension | Rescued a captive Derelict 14268 | -6/Extension | Build established: Skirmisher 14543 | -6/Extension | Rescued a captive Derelict 14544 | -6/Extension | Rescued a captive Derelict 14747 | -6/Extension | Build established: Commander-Tank 14861 | -6/Extension | Spotted B-75 Beast 14880 | -6/Extension | Allies destroyed B-75 Beast 14889 | -6/Extension | Spotted B-75 Beast 14901 | -6/Extension | Allies destroyed B-75 Beast 15320 | -6/Extension | Rescued A7 15416 | -6/Extension | Discovered new exit (range 10) 15417 | -6/Extension | Discovered new exit (range 6) 15473 | -6/Extension | Entered Cetus 15473 | -6/Cetus | Accompanied by 14 allies (A7) 15478 | -6/Cetus | Acquired a Cetus Manufacturing Module code from A7 15525 | -6/Cetus | Spotted Cetus Guard 15525 | -6/Cetus | Spotted Cetus Guard 15536 | -6/Cetus | Spotted Cetus Guard 15536 | -6/Cetus | Spotted Cetus Guard 15536 | -6/Cetus | Allies destroyed Cetus Guard 15541 | -6/Cetus | Allies destroyed Cetus Guard 15548 | -6/Cetus | Allies destroyed Cetus Guard 15550 | -6/Cetus | Allies destroyed Cetus Guard 15575 | -6/Cetus | Lost 5 allies 15639 | -6/Cetus | Started Cetus Manufacturing Module 15664 | -6/Cetus | Manufactured an Enhanced Grunt 15689 | -6/Cetus | Manufactured an Enhanced Grunt 15714 | -6/Cetus | Manufactured an Enhanced Grunt 15739 | -6/Cetus | Manufactured an Enhanced Grunt 15764 | -6/Cetus | Manufactured an Enhanced Grunt 15859 | -6/Cetus | Escorted A7 to Cetus Mainframe 15867 | -6/Cetus | Discovered new exit (range 22) 15909 | -6/Cetus | Discovered new exit (range 26) 15910 | -6/Cetus | Spotted Cetus Guard 15912 | -6/Cetus | Spotted Cetus Guard 15913 | -6/Cetus | Spotted Cetus Guard 15918 | -6/Cetus | Spotted Cetus Guard 15929 | -6/Cetus | Allies destroyed Cetus Guard 15934 | -6/Cetus | Allies destroyed Cetus Guard 15938 | -6/Cetus | Destroyed Cetus Guard 15938 | -6/Cetus | Allies destroyed Cetus Guard 15951 | -6/Cetus | Met Revision 17 16078 | -6/Cetus | Entered Archives 16078 | -6/Archives | Accompanied by 13 allies (A7) 16083 | -6/Archives | Received a hacking code to weaken MAIN.C 16127 | -6/Archives | Discovered new exit (range 22) 16148 | -6/Archives | Discovered new exit (range 21) 16165 | -6/Archives | Discovered new exit (range 22) 16292 | -6/Archives | Entered Hub_04(d) 16292 | -6/Hub_04(d) | Accompanied by 10 allies 16387 | -6/Hub_04(d) | Lost 4 allies 16418 | -6/Hub_04(d) | Network Hub disabled 16418 | -6/Hub_04(d) | Garrison activated, responded to threat 16419 | -6/Hub_04(d) | Core integrity fell below 50% 16419 | -6/Hub_04(d) | Spotted Lightning 16420 | -6/Hub_04(d) | Spotted Lightning 16420 | -6/Hub_04(d) | Spotted Lightning 16424 | -6/Hub_04(d) | Destroyed Lightning 16429 | -6/Hub_04(d) | Spotted B-75 Beast 16431 | -6/Hub_04(d) | Destroyed Lightning 16437 | -6/Hub_04(d) | Spotted Lightning 16438 | -6/Hub_04(d) | Spotted Lightning 16443 | -6/Hub_04(d) | Spotted Lightning 16456 | -6/Hub_04(d) | System corruption reached 10% 16465 | -6/Hub_04(d) | Lost 6 allies 16520 | -6/Hub_04(d) | Core integrity fell below 20% 16526 | -6/Hub_04(d) | System corruption reached 30% 16584 | -6/Hub_04(d) | Destroyed by Lightning with EMDS Last Messages --------------- 16574_ G-67 Veteran heat damages Backup Plating III, Flexi-carbon Leg, Field Laser, Flexi-carbon Leg. 16574_ G-67 Veteran overheating. 16575_ Centrium Heavy Treads destroyed. 16575_ Penetrated by EMDS Slug. 16575_ G-67 Veteran overheating. 16576_ Penetrated by EMDS Slug. 16577_ G-67 Veteran overheating. 16579_ Ended siege mode. 16579_ Penetrated by EMDS Slug. 16579_ Dropped Hcp. Storage Unit. 16579_ G-67 Veteran overheating. 16580_ Dropped Coil Gun. 16580_ Penetrated by EMDS Slug. 16581_ Dropped Lyr. Medium Armor Plating. 16582_ System corrupted: Heat flow error (+286). 16583_ Dropped Minigun. 16583_ Acquired 40 matter. 16583_ Penetrated by EMDS Slug. Map ----- +----------------------------------------------------+ | ???????????????????????????????? | | ???????????????????????????????? | | ???????????????????????????????? | | ???????????????????????????????? | | ???????????????????????????????? | | ???????????????????????????????? | | ???????????????????????????????? | | ???????????????????????????????? | | ???????????????????????????????? | | ???????????????????????????????? | | ???????????????????????????????? | | ???????????????????????#####???? | | ???????????????????????# #???? | | ???????????????????????# #???? | | ???????????????????????# #???? | | ???????????????????????# #???? | | #######????????????????# #???? | | # ###??????????????# #???? | | =!##"################## #???? | | *%[#=!=!!]%%! #???? | | =!!%%%!!%!%*!! #???? | | **"%=%=[%=!* #???? | | = ###"################g###### | | "!%= %!= #????????# h # | | """!""%[ "" #????????#"""Yhhh # | | = * %"! " #????????#"""@!=* # | | !|% % " #????????#"""" %! !# | | !=/ #????????#""" !!= # | | [ % #????????# !!!! # | | #????????# [! # | | " #????????# # | | " #????????########### | | #??????????????????? | | ##% #??????????????????? | | # !% #??????????????????? | | %% #?????????????????? | | ! !* ?????????????????? | | ?????????????????? | | % ! ????????????????? | | % ##????????????????? | | % ##?????????????????? | | "G" !#??????????????????? | | # """ #??????????????????? | | ??## ??????????????????? | | ???# ! ##?????????????????? | | ????##+######??????????????????? | | ???????????????????????????????? | | ???????????????????????????????? | | ???????????????????????????????? | | ???????????????????????????????? | +----------------------------------------------------+ Best States ------------- Heat Dissipation 80 Energy Generation 25 Energy Capacity 350 Matter Stores 300 Matter Capacity 300 Sight Range 22 Robot Scan Range 20 Terrain Scan Density 10 Jamming Range 16 Armor Coverage 450 Resistance: KI 20 Evasion (%) 40 Recoil Reduction 4 Matter Filtering 30 Kinecelleration 30 Salvage Targeting 1 Defensive Hacking 10 Relay Coupler Types 1 Relay Coupler Value 25 Item Schematics ----------------- None Robot Schematics ------------------ None Fabricated ------------ O-24 Administrator | x1 | -6/Factory | Preloaded Repaired ---------- Nothing Studied --------- None Alien Tech Used ----------------- None Achievements -------------- None Challenges ------------ None Game ------ Seed AntisysPrecisionMultitool Manual? 0 Play Time 01:51:56 Cumulative 326.8 hours Start 2026.01.27 @ 15:29:27 End 2026.01.27 @ 17:21:45 Sessions 1 Manual Loads 0 Difficulty Rogue Special Mode None Game No. 215 Rogue 215 Adventurer 0 Explorer 0 Win Type - Total 12 Types 8/1/1/1/0/0/0/1/0/0 Lore% 92 Gallery% 80 Achievement% 66 Wizard Run 0 Options --------- Layout 1 ASCII 0 Keyboard 0 Movement Mouse Keybinds 0 Fullscreen 2 Font 32/SmallcapsGlow Map View 50x35 Zoom Use 0% Tactical HUD 1 Map Filters NONE Filters NONE Steam 1 RUN: 22604ae4-956c-47c4-9d5a-f4e068e14737